[Event "Stockholm Chess Challenge 2019"]
[Site "Stockholm"]
[Date "2019.05.01"]
[Round "9.6"]
[White "Kvaloy, Aksel Bu"]
[Black "Dev, Shah"]
[Result "1/2-1/2"]
[ECO "A11"]
[WhiteElo "2138"]
[BlackElo "2020"]
[Annotator "NA"]
[PlyCount "60"]
[EventDate "2019.04.26"]
[EventType "swiss"]
[EventCountry "SWE"]
[SourceTitle "playchess.com"]
[Source "ChessBase"]
[SourceQuality "1"]
[TimeControl "40/5400+30:900+30"]

1. c4 {[%emt 0:00:00]} c6 {[%emt 0:00:37]} 2. g3 {[%emt 0:00:00]} d5 {[%emt 0:00:07]} 3. Nf3 {[%emt 0:00:00]} Nf6 {[%emt 0:00:06]} 4. Bg2 {[%emt 0:00:00]} Bf5 {[%emt 0:00:06]} 5. Qb3 {[%emt 0:00:14]} Qb6 {[%emt 0:00:20]} 6. d3 {[%emt 0:00:45]} e6 {[%emt 0:00:12]} 7. Be3 {[%emt 0:00:29]} Qxb3 {[%emt 0:00:43]} 8. axb3 {[%emt 0:00:06]} a6 {[%emt 0:00:05]} 9. Nc3 {[%emt 0:00:19]} Nbd7 {[%emt 0:01:47]} 10. Nh4 {[%emt 0:00:42]} Bg6 {[%emt 0:01:07]} 11. Nxg6 {[%emt 0:02:33]} hxg6 {[%emt 0:00:14]} 12. h3 {[%emt 0:03:43]} Bd6 {[%emt 0:04:48]} 13. O-O {[%emt 0:02:51]} Ke7 {[%emt 0:00:51]} 14. Bg5 {[%emt 0:10:04]} Rhb8 {[%emt 0:15:32]} 15. d4 {[%emt 0:09:30]} Ke8 {[%emt 0:11:43]} 16. e4 {[%emt 0:17:07]} dxe4 {[%emt 0:00:51]} 17. Nxe4 {[%emt 0:00:32]} Nxe4 {[%emt 0:02:07]} 18. Bxe4 {[%emt 0:01:20]} c5 {[%emt 0:08:36]} 19. d5 {[%emt 0:10:52]} e5 {[%emt 0:00:00]} 20. g4 {[%emt 0:02:13]} b5 {[%emt 0:02:23]} 21. Bd3 {[%emt 0:03:52]} bxc4 {[%emt 0:15:01]} 22. Bxc4 {[%emt 0:00:30]} f6 {[%emt 0:02:15]} 23. Bd2 {[%emt 0:02:31]} f5 {[%emt 0:00:13]} 24. Bc3 {[%emt 0:09:37]} Kf7 {[%emt 0:01:54]} 25. f3 {[%emt 0:01:40]} Ke7 {[%emt 0:02:29]} 26. Rfe1 {[%emt 0:06:30]} Bc7 {[%emt 0:01:49]} 27. Kg2 {[%emt 0:12:13]} Bd6 {[%emt 0:05:43]} 28. Kg1 {[%emt 0:00:33]} Bc7 {[%emt 0:02:22]} 29. Kg2 {[%emt 0:00:05]} Bd6 {[%emt 0:01:04]} 30. Kg1 {[%emt 0:00:14]} Bc7 {[%emt 0:02:14]} 1/2-1/2

[Event "Stockholm Chess Challenge 2019"]
[Site "Stockholm"]
[Date "2019.05.01"]
[Round "9.7"]
[White "Sivaji Baskar S"]
[Black "Trost, Edvin"]
[Result "0-1"]
[ECO "B42"]
[WhiteElo "1630"]
[BlackElo "2075"]
[Annotator "NA"]
[PlyCount "105"]
[EventDate "2019.04.26"]
[EventType "swiss"]
[EventCountry "SWE"]
[SourceTitle "playchess.com"]
[Source "ChessBase"]
[SourceQuality "1"]
[TimeControl "40/5400+30:900+30"]

1. e4 {[%emt 0:00:00]} c5 {[%emt 0:03:02]} 2. Nf3 {[%emt 0:00:00]} e6 {[%emt 0:00:05]} 3. d4 {[%emt 0:00:00]} cxd4 {[%emt 0:00:01]} 4. Nxd4 {[%emt 0:00:05]} a6 {[%emt 0:00:02]} 5. Bd3 {[%emt 0:00:08]} Bc5 {[%emt 0:00:06]} 6. Nb3 {[%emt 0:00:24]} Ba7 {[%emt 0:00:07]} 7. O-O {[%emt 0:00:35]} d6 {[%emt 0:04:58]} 8. Nc3 {[%emt 0:00:58]} Nf6 {[%emt 0:00:36]} 9. Bg5 {[%emt 0:00:44]} Nbd7 {[%emt 0:01:46]} 10. Kh1 {[%emt 0:00:15]} b5 {[%emt 0:00:41]} 11. f4 {[%emt 0:02:33]} h6 {[%emt 0:06:07]} 12. Bh4 {[%emt 0:00:55]} Qc7 {[%emt 0:00:20]} 13. a3 {[%emt 0:02:45]} Bb7 {[%emt 0:09:01]} 14. Qe2 {[%emt 0:05:39]} O-O {[%emt 0:06:32]} 15. Rae1 {[%emt 0:02:02]} Rfe8 {[%emt 0:02:19]} 16. e5 {[%emt 0:26:42]} Nd5 {[%emt 0:00:56]} 17. Ne4 {[%emt 0:01:33]} dxe5 {[%emt 0:01:20]} 18. fxe5 {[%emt 0:00:15]} Nxe5 {[%emt 0:01:41]} 19. Bg3 {[%emt 0:00:10]} Ne3 {[%emt 0:01:28]} 20. Qh5 {[%emt 0:07:42]} f5 {[%emt 0:01:37]} 21. Rf3 {[%emt 0:11:26]} Qf7 {[%emt 0:05:37]} 22. Qxf7+ {[%emt 0:03:56]} Nxf7 {[%emt 0:00:01]} 23. Rfxe3 {[%emt 0:03:52]} Bxe3 {[%emt 0:00:14]} 24. Rxe3 {[%emt 0:00:25]} fxe4 {[%emt 0:00:24]} 25. Bxe4 {[%emt 0:00:07]} Bxe4 {[%emt 0:00:15]} 26. Rxe4 {[%emt 0:00:21]} Rad8 {[%emt 0:04:14]} 27. h3 {[%emt 0:01:42]} Rd1+ {[%emt 0:01:07]} 28. Kh2 {[%emt 0:00:03]} Ng5 {[%emt 0:01:12]} 29. Re2 {[%emt 0:00:44]} Rf8 {[%emt 0:00:32]} 30. h4 {[%emt 0:00:59]} Rff1 {[%emt 0:00:11]} 31. Bb8 {[%emt 0:02:11]} Nh7 {[%emt 0:04:21]} 32. Rxe6 {[%emt 0:02:46]} Rf6 {[%emt 0:00:02]} 33. Re2 {[%emt 0:00:46]} Kf7 {[%emt 0:00:50]} 34. Nc5 {[%emt 0:00:55]} Kg6 {[%emt 0:00:47]} 35. b4 {[%emt 0:02:23]} Rc6 {[%emt 0:01:23]} 36. Re3 {[%emt 0:07:08]} Nf6 {[%emt 0:00:16]} 37. Rg3+ {[%emt 0:00:39]} Kf7 {[%emt 0:01:12]} 38. Be5 {[%emt 0:01:47]} Rc1 {[%emt 0:02:17]} 39. c3 {[%emt 0:00:09]} h5 {[%emt 0:00:49]} 40. Rf3 {[%emt 0:00:22]} Kg6 {[%emt 0:00:14]} 41. Bd4 {[%emt 0:15:10]} Ra1 {[%emt 0:19:08]} 42. c4 {[%emt 0:08:28]} Rd1 {[%emt 0:02:00]} 43. cxb5 {[%emt 0:01:22]} axb5 {[%emt 0:00:02]} 44. Bc3 {[%emt 0:01:15]} Kh6 {[%emt 0:03:19]} 45. Kh3 {[%emt 0:04:30]} Nd5 {[%emt 0:03:30]} 46. Bb2 {[%emt 0:00:00]} Rh1+ {[%emt 0:00:00]} 47. Kg3 {[%emt 0:00:00]} Rg6+ {[%emt 0:00:00]} 48. Kf2 {[%emt 0:00:00]} Rxh4 {[%emt 0:00:00]} 49. Nd7 {[%emt 0:00:00]} Rc4 {[%emt 0:00:00]} 50. Kf1 {[%emt 0:00:00]} Rc2 {[%emt 0:00:00]} 51. Bd4 {[%emt 0:00:00]} Rgxg2 {[%emt 0:00:00]} 52. Rf5 {[%emt 0:00:00]} Rgd2 {[%emt 0:00:00]} 53. Rf4 0-1

[Event "Stockholm Chess Challenge 2019"]
[Site "Stockholm"]
[Date "2019.05.01"]
[Round "9.8"]
[White "Wernberg, Hugo"]
[Black "Kucuksari, Kaan"]
[Result "0-1"]
[ECO "B41"]
[WhiteElo "2009"]
[BlackElo "2301"]
[Annotator "NA"]
[PlyCount "78"]
[EventDate "2019.04.26"]
[EventType "swiss"]
[EventCountry "SWE"]
[SourceTitle "playchess.com"]
[Source "ChessBase"]
[SourceQuality "1"]
[TimeControl "40/5400+30:900+30"]

1. e4 {[%emt 0:00:00]} c5 {[%emt 0:00:00]} 2. Nf3 {[%emt 0:00:00]} e6 {[%emt 0:00:00]} 3. d4 {[%emt 0:00:02]} cxd4 {[%emt 0:00:00]} 4. Nxd4 {[%emt 0:00:08]} a6 {[%emt 0:00:00]} 5. c4 {[%emt 0:00:11]} Nf6 {[%emt 0:00:00]} 6. Nc3 {[%emt 0:00:12]} Qc7 {[%emt 0:00:00]} 7. Be2 {[%emt 0:00:15]} d6 {[%emt 0:00:54]} 8. O-O {[%emt 0:00:19]} Nbd7 {[%emt 0:00:06]} 9. f4 {[%emt 0:00:30]} b6 {[%emt 0:01:25]} 10. Qd3 {[%emt 0:00:16]} Bb7 {[%emt 0:00:04]} 11. b4 {[%emt 0:00:20]} Rc8 {[%emt 0:00:22]} 12. Bb2 {[%emt 0:00:58]} Be7 {[%emt 0:00:17]} 13. Rac1 {[%emt 0:04:19]} O-O {[%emt 0:02:55]} 14. f5 {[%emt 0:02:55]} Ne5 {[%emt 0:00:21]} 15. Qg3 {[%emt 0:01:37]} Qd7 {[%emt 0:03:14]} 16. fxe6 {[%emt 0:10:42]} fxe6 {[%emt 0:00:03]} 17. Qh3 {[%emt 0:04:32]} Nxc4 {[%emt 0:01:32]} 18. Bxc4 {[%emt 0:01:13]} Rxc4 {[%emt 0:00:02]} 19. Qxe6+ {[%emt 0:05:52]} Qxe6 {[%emt 0:02:13]} 20. Nxe6 {[%emt 0:00:11]} Rfc8 {[%emt 0:00:03]} 21. a3 {[%emt 0:02:25]} Nxe4 {[%emt 0:05:20]} 22. Nxe4 {[%emt 0:00:14]} Bxe4 {[%emt 0:05:19]} 23. Rxc4 {[%emt 0:15:30]} Rxc4 {[%emt 0:00:04]} 24. Rc1 {[%emt 0:00:22]} Bc2 {[%emt 0:13:26]} 25. Rf1 {[%emt 0:11:54]} Bd3 {[%emt 0:12:50]} 26. Rf3 {[%emt 0:03:46]} Bg6 {[%emt 0:05:58]} 27. Nf4 {[%emt 0:13:03]} Bf7 {[%emt 0:02:57]} 28. g3 {[%emt 0:02:53]} g5 {[%emt 0:02:18]} 29. Ng2 {[%emt 0:03:02]} Bd5 {[%emt 0:04:14]} 30. Rc3 {[%emt 0:02:03]} Rxc3 {[%emt 0:04:41]} 31. Bxc3 {[%emt 0:00:24]} Bxg2 {[%emt 0:00:04]} 32. Kxg2 {[%emt 0:00:12]} g4 {[%emt 0:00:02]} 33. a4 {[%emt 0:03:02]} Kf7 {[%emt 0:06:41]} 34. Kf2 {[%emt 0:01:06]} Bf6 {[%emt 0:02:05]} 35. Bd2 {[%emt 0:01:08]} Ke6 {[%emt 0:00:01]} 36. b5 {[%emt 0:01:41]} axb5 {[%emt 0:00:21]} 37. axb5 {[%emt 0:00:02]} Kd5 {[%emt 0:01:09]} 38. Bb4 {[%emt 0:00:38]} Bd4+ {[%emt 0:00:14]} 39. Ke2 {[%emt 0:00:11]} Bc5 {[%emt 0:00:48]} 0-1